Name,Sub Group,Service Area,Expense Type,Narrative,Date,Transaction No,Amount,Supplier Name,Supplier Ref,Period,Year
Allerdale Borough Council,16350,Supplies & Services,Enterprise Coaches,Miscellaneous Expenses,05/06/2013,4871,194,BRETT MITTON PRINTING LTD,A01753,3,2013
Allerdale Borough Council,21101,Transfer Payments,Economic Regeneration,Private Individuals,05/06/2013,4872,750,REEDLANDS AUTO CENTRE LTD,A01689,3,2013
Allerdale Borough Council,15804,Supplies & Services,Shared IT Services,Computer Data Lines B.T.,05/06/2013,4873,23.09,CABLE & WIRELESS/VODAFONE,A00934,3,2013
Allerdale Borough Council,15703,Supplies & Services,Shared IT Services,Call Charges,05/06/2013,4874,"1,180.78",CABLE & WIRELESS/VODAFONE,A00934,3,2013
Allerdale Borough Council,15704,Supplies & Services,Shared IT Services,Mobile Phones,05/06/2013,4875,51.8,CABLE & WIRELESS/VODAFONE,A00934,3,2013
Allerdale Borough Council,15804,Supplies & Services,Shared IT Services,Computer Data Lines B.T.,05/06/2013,4876,11.95,CABLE & WIRELESS/VODAFONE,A00934,3,2013
Allerdale Borough Council,15804,Supplies & Services,Shared IT Services,Computer Data Lines B.T.,05/06/2013,4877,67.9,CABLE & WIRELESS/VODAFONE,A00934,3,2013
Allerdale Borough Council,15805,Supplies & Services,Shared IT Services,Computer Network,05/06/2013,4878,"1,330.00",CABLE & WIRELESS/VODAFONE,A00934,3,2013
Allerdale Borough Council,14101,,Shared IT Services,Vehicle Leasing,10/07/2013,4879,189,ARNOLD CLARK FINANCE LIMITED,A01781,3,2013
Allerdale Borough Council,15813,Supplies & Services,Shared IT Services,Software Miscellaneous,12/06/2013,4880,30,THUS/DEMON PLC/ (VODAFONE),A00598,3,2013
Allerdale Borough Council,12402,Premises,Public Convenience Cleaning,Electricity,19/06/2013,4881,26.25,N POWER,X00015,3,2013
Allerdale Borough Council,12402,Premises,Public Convenience Cleaning,Electricity,19/06/2013,4882,44.04,N POWER,X00015,3,2013
Allerdale Borough Council,12402,Premises,Public Convenience Cleaning,Electricity,19/06/2013,4883,44.9,N POWER,X00015,3,2013
Allerdale Borough Council,12402,Premises,Public Convenience Cleaning,Electricity,19/06/2013,4884,44.91,N POWER,X00015,3,2013
Allerdale Borough Council,12402,Premises,Public Convenience Cleaning,Electricity,19/06/2013,4885,44.53,N POWER,X00015,3,2013
Allerdale Borough Council,12402,Premises,Public Convenience Cleaning,Electricity,19/06/2013,4886,44.33,N POWER,X00015,3,2013
Allerdale Borough Council,12402,Premises,Public Convenience Cleaning,Electricity,19/06/2013,4887,-399.24,N POWER,X00015,3,2013
Allerdale Borough Council,12402,Premises,Public Convenience Cleaning,Electricity,19/06/2013,4888,-402.82,N POWER,X00015,3,2013
Allerdale Borough Council,12402,Premises,Public Convenience Cleaning,Electricity,19/06/2013,4889,-403.37,N POWER,X00015,3,2013
Allerdale Borough Council,12402,Premises,Public Convenience Cleaning,Electricity,19/06/2013,4890,-399.62,N POWER,X00015,3,2013
Allerdale Borough Council,12402,Premises,Public Convenience Cleaning,Electricity,19/06/2013,4891,-407.26,N POWER,X00015,3,2013
Allerdale Borough Council,12402,Premises,Public Convenience Cleaning,Electricity,05/06/2013,4892,136.62,UNITED UTILITIES ,X00011,3,2013
Allerdale Borough Council,12402,Premises,Public Convenience Cleaning,Electricity,19/06/2013,4893,37.38,N POWER,X00015,3,2013
Allerdale Borough Council,12402,Premises,Public Convenience Cleaning,Electricity,19/06/2013,4894,7.65,N POWER,X00015,3,2013
Allerdale Borough Council,12402,Premises,Public Convenience Cleaning,Electricity,19/06/2013,4895,5.7,N POWER,X00015,3,2013
Allerdale Borough Council,12402,Premises,Public Convenience Cleaning,Electricity,19/06/2013,4896,329.43,N POWER,X00015,3,2013
Allerdale Borough Council,12402,Premises,Public Convenience Cleaning,Electricity,19/06/2013,4897,75.94,N POWER,X00015,3,2013
Allerdale Borough Council,12402,Premises,Car Parks Inspection & Maintenance,Electricity,19/06/2013,4898,5.4,N POWER,X00015,3,2013
Allerdale Borough Council,12402,Premises,Car Parks Inspection & Maintenance,Electricity,19/06/2013,4899,15.62,N POWER,X00015,3,2013
Allerdale Borough Council,12402,Premises,Car Parks Inspection & Maintenance,Electricity,19/06/2013,4900,16.22,N POWER,X00015,3,2013
Allerdale Borough Council,12402,Premises,Car Parks Inspection & Maintenance,Electricity,19/06/2013,4901,10.83,N POWER,X00015,3,2013
Allerdale Borough Council,12402,Premises,Public Convenience Cleaning,Electricity,19/06/2013,4902,7.27,N POWER,X00015,3,2013
Allerdale Borough Council,12402,Premises,Car Parks Inspection & Maintenance,Electricity,19/06/2013,4903,2.28,N POWER,X00015,3,2013
Allerdale Borough Council,12402,Premises,Car Parks Inspection & Maintenance,Electricity,19/06/2013,4904,-16.72,N POWER,X00015,3,2013
Allerdale Borough Council,12402,Premises,Car Parks Inspection & Maintenance,Electricity,19/06/2013,4905,-48.82,N POWER,X00015,3,2013
Allerdale Borough Council,12402,Premises,Car Parks Inspection & Maintenance,Electricity,19/06/2013,4906,-49.65,N POWER,X00015,3,2013
Allerdale Borough Council,12402,Premises,Car Parks Inspection & Maintenance,Electricity,19/06/2013,4907,-49.92,N POWER,X00015,3,2013
Allerdale Borough Council,12402,Premises,Car Parks Inspection & Maintenance,Electricity,19/06/2013,4908,-33.18,N POWER,X00015,3,2013
Allerdale Borough Council,12402,Premises,Car Parks Inspection & Maintenance,Electricity,19/06/2013,4909,-10.21,N POWER,X00015,3,2013
Allerdale Borough Council,12402,Premises,Corporate Property,Electricity,19/06/2013,4910,44.7,N POWER,X00015,3,2013
Allerdale Borough Council,12309,Premises,Corporate Property,Fire and Safety,05/06/2013,4911,-50.44,ORIAN SOLUTIONS LTD,A01814,3,2013
Allerdale Borough Council,12403,Premises,Corporate Property,Gas,05/06/2013,4912,"1,777.92",BRITISH GAS,X00006,3,2013
Allerdale Borough Council,15602,Supplies & Services,Elections,Business Reply Licences,05/06/2013,4913,148.99,ROYAL MAIL LETTERS,X00021,3,2013
Allerdale Borough Council,15704,Supplies & Services,Shared IT Services,Mobile Phones,05/06/2013,4914,963.94,VODAFONE,A00551,3,2013
Allerdale Borough Council,12408,Premises,Public Convenience Cleaning,Water & Sewage,05/06/2013,4915,"1,276.04",UNITED UTILITIES ,X00011,3,2013
Allerdale Borough Council,12408,Premises,Public Convenience Cleaning,Water & Sewage,05/06/2013,4916,45.62,UNITED UTILITIES ,X00011,3,2013
Allerdale Borough Council,12408,Premises,Public Convenience Cleaning,Water & Sewage,05/06/2013,4917,76.46,UNITED UTILITIES ,X00011,3,2013
Allerdale Borough Council,12408,Premises,Public Convenience Cleaning,Water & Sewage,05/06/2013,4918,14.68,UNITED UTILITIES ,X00011,3,2013
Allerdale Borough Council,15903,Supplies & Services,Members Services,"Courses, Training & Seminars",05/06/2013,4919,95.55,CUMB RURAL ENTERPRISE AGENCY,A01640,3,2013
Allerdale Borough Council,70104,VAT,Input VAT,VAT - 20%,05/06/2013,4920,48.54,ROSSENDALES LTD,A00964,3,2013
Allerdale Borough Council,70104,VAT,Input VAT,VAT - 20%,05/06/2013,4921,357.88,ROSSENDALES LTD,A00964,3,2013
Allerdale Borough Council,12402,Premises,Tenanted Properties,Electricity,05/06/2013,4922,292.92,BRITISH GAS,X00006,3,2013
Allerdale Borough Council,12402,Premises,Tenanted Properties,Electricity,05/06/2013,4923,-218.3,BRITISH GAS,X00006,3,2013
Allerdale Borough Council,12408,Premises,Corporate Property,Water & Sewage,05/06/2013,4924,357.68,BRITISH GAS,X00006,3,2013
Allerdale Borough Council,12403,Premises,Corporate Property,Gas,05/06/2013,4925,-398.5,BRITISH GAS,X00006,3,2013
Allerdale Borough Council,12101,Premises,Other Land & Buildings,External Maintenance & Decoration,05/06/2013,4926,60,T/A MR KEYS,A00561,3,2013
Allerdale Borough Council,15101,Supplies & Services,Animal Welfare,Equipment Costs,19/06/2013,4927,58,AVID PLC,A01813,3,2013
Allerdale Borough Council,15103,Supplies & Services,Recycling,Purchase of Materials,05/06/2013,4928,395,FIRPRESS PRINTERS,A00063,3,2013
Allerdale Borough Council,20102,Third Party Payments,Recycling,Horticulture (Obsolete),05/06/2013,4929,"3,229.74",FCC RECYCLING (UK) LTD (ALCO),A00185,3,2013
Allerdale Borough Council,20102,Third Party Payments,Recycling,Horticulture (Obsolete),05/06/2013,4930,"1,695.68",FCC RECYCLING (UK) LTD (ALCO),A00185,3,2013
Allerdale Borough Council,20102,Third Party Payments,Recycling,Horticulture (Obsolete),05/06/2013,4931,"2,030.75",FCC RECYCLING (UK) LTD (ALCO),A00185,3,2013
Allerdale Borough Council,20102,Third Party Payments,Recycling,Horticulture (Obsolete),05/06/2013,4932,"2,185.00",FCC RECYCLING (UK) LTD (ALCO),A00185,3,2013
Allerdale Borough Council,16101,Supplies & Services,Planning and Development,Statutory Notices,05/06/2013,4933,"1,445.17",CUMBRIA CC - 3C STUDIO,A00070,3,2013
Allerdale Borough Council,16101,Supplies & Services,Planning and Development,Statutory Notices,05/06/2013,4934,"2,754.71",CUMBRIA CC - 3C STUDIO,A00070,3,2013
Allerdale Borough Council,12303,Premises,Carnegie Theatre,Window Cleaning,05/06/2013,4935,118.71,J A LEE WINDOWS,A00051,3,2013
Allerdale Borough Council,12101,Premises,Parks and Grounds Maintenance,External Maintenance & Decoration,19/06/2013,4936,231,J PARKER DUTCH BULBS (W/S) LTD,A01729,3,2013
Allerdale Borough Council,16101,Supplies & Services,Planning and Development,Statutory Notices,05/06/2013,4937,712.61,CUMBRIA CC - 3C STUDIO,A00070,3,2013
Allerdale Borough Council,15501,Supplies & Services,Planning and Development,Consultants Fees,05/06/2013,4938,772.5,CAPITA (TREE/HEDGEROWS),A00683,3,2013
Allerdale Borough Council,15103,Supplies & Services,Solway Coast AONB,Purchase of Materials,19/06/2013,4939,187.95,MAXWELL AMENITY,C00119,3,2013
Allerdale Borough Council,73102,Holding and Control Accounts,Capital Project Retentions,Holding Accounts General - Expenditure,05/06/2013,4940,"120,775.41",T ARMSTRONG - CONSTRUCT,C00003,3,2013
Allerdale Borough Council,73102,Holding and Control Accounts,Capital Project Retentions,Holding Accounts General - Expenditure,12/06/2013,4941,"202,138.25",T ARMSTRONG - CONSTRUCT,C00003,3,2013
Allerdale Borough Council,15301,Supplies & Services,Recycling,Uniforms,05/06/2013,4942,107.88,ARCO LIMITED,A00045,3,2013
Allerdale Borough Council,70104,VAT,Input VAT,VAT - 20%,05/06/2013,4943,2.24,ROSSENDALES LTD,A00964,3,2013
Allerdale Borough Council,70104,VAT,Input VAT,VAT - 20%,12/06/2013,4944,224.17,JACOBS,A00495,3,2013
Allerdale Borough Council,70104,VAT,Input VAT,VAT - 20%,05/06/2013,4945,166.01,JACOBS,A00495,3,2013
Allerdale Borough Council,15812,Supplies & Services,IT - New Initiatives,Software Development,05/06/2013,4946,"7,400.00",TOTALMOBILE LIMITED,A01712,3,2013
Allerdale Borough Council,15812,Supplies & Services,IT - New Initiatives,Software Development,05/06/2013,4947,600,TOTALMOBILE LIMITED,A01712,3,2013
Allerdale Borough Council,15812,Supplies & Services,IT - New Initiatives,Software Development,05/06/2013,4948,"1,930.00",TOTALMOBILE LIMITED,A01712,3,2013
Allerdale Borough Council,15812,Supplies & Services,IT - New Initiatives,Software Development,05/06/2013,4949,"2,895.00",TOTALMOBILE LIMITED,A01712,3,2013
Allerdale Borough Council,10601,Employee Costs,Training,External Courses & Seminar Fees,05/06/2013,4950,"1,610.00",CIPFA,A00572,3,2013
Allerdale Borough Council,15505,Supplies & Services,Licensing Service,Licences,05/06/2013,4951,37.36,ALLERDALE BOROUGH COUNCIL,A00342,3,2013
Allerdale Borough Council,12306,Premises,Corporate Property,Legionella Inspections and Services,05/06/2013,4952,149.26,RENTOKIL INITIAL UK LTD - WATERSAFE,A01790,3,2013
Allerdale Borough Council,15813,Supplies & Services,Shared IT Services,Software Miscellaneous,05/06/2013,4953,"2,500.00",SSL TRACKER LIMITED,A01829,3,2013
Allerdale Borough Council,10604,Employee Costs,Solway Coast AONB,Hire of Training Rooms/Venues,26/06/2013,4954,46,BEAUMONT PARISH HALL,A01758,3,2013
Allerdale Borough Council,51101,Capital Expenditure,KMAG Enhancement Project,External Contractor Payments (Capital),05/06/2013,4955,665,BOX CLEVER STORAGE,A00880,3,2013
Allerdale Borough Council,15203,Supplies & Services,Town Centre Management,Catering Costs and Consumables,26/06/2013,4956,100,RIVERSMEET COMMUNITY COOPERATIVE,A01806,3,2013
Allerdale Borough Council,15812,Supplies & Services,Shared IT Services,Software Development,26/06/2013,4957,250,LANDMARK INFORMATION GROUP LTD,A00813,3,2013
Allerdale Borough Council,15506,Supplies & Services,Legal Services,Professional Services,19/06/2013,4958,892,EVERSHEDS LLP,A01516,3,2013
Allerdale Borough Council,15501,Supplies & Services,Homelessness,Consultants Fees,05/06/2013,4959,20,JAMES STREET GROUP PRACTICE,A00462,3,2013
Allerdale Borough Council,15405,Supplies & Services,Parking Services Pay Group,Use of External Printers,12/06/2013,4960,410,NAGELS MULTIGRAPHIC LTD,A00690,3,2013
Allerdale Borough Council,15550,Supplies & Services,Licensing Service,General-Service Related Fees,,4961,220,DISCLOSURE & BARRING SERVICE,X00041,3,2013
Allerdale Borough Council,15503,Supplies & Services,Tenanted Properties,Court and Tribunal Costs,05/06/2013,4962,"2,827.20",MILBURNS SOLICITORS,A00310,3,2013
Allerdale Borough Council,15502,Supplies & Services,Legal Services,Land Registry Fees,04/06/2013,4963,50,HM LAND REGISTRY ,A00505,3,2013
Allerdale Borough Council,33101,Income,Domestic Waste,Charges for Services General Income,05/06/2013,4965,17.23,Redacted information - included personal information ,M00164,3,2013
Allerdale Borough Council,60104,Capital Receipts and Grants,Renovation Grants,Loan Repayments (Capital),05/06/2013,4966,"15,000.00",BENDLES SOLICITORS,M00163,3,2013
Allerdale Borough Council,15514,Supplies & Services,Carnegie Theatre,Public Entertainment,05/06/2013,4967,35,ALLERDALE BOROUGH COUNCIL,X00034,3,2013
Allerdale Borough Council,12308,Premises,Homelessness,Domestic Consumables,05/06/2013,4969,64.62,ALLERDALE BOROUGH COUNCIL,X00034,3,2013
Allerdale Borough Council,72109,,9104,72109 - Post Payment Tax Account,,4970,-982.8,Redacted information - included personal information ,A01719,3,2013
Allerdale Borough Council,54105,Capital Expenditure,Disabled Facilities Grants,Grants  Private Individuals (Capital),05/06/2013,4971,"2,498.10",STOBBARTS LTD,C00002,3,2013
Allerdale Borough Council,15301,Supplies & Services,Recycling,Uniforms,05/06/2013,4972,40,ARCO LIMITED,A00045,3,2013
Allerdale Borough Council,15501,Supplies & Services,Planning and Development,Consultants Fees,12/06/2013,4973,850,KEPPIE MASSIE,A01574,3,2013
Allerdale Borough Council,15501,Supplies & Services,Planning and Development,Consultants Fees,12/06/2013,4974,"1,000.00",POS ENTERPRISES,A00722,3,2013
Allerdale Borough Council,15501,Supplies & Services,Planning and Development,Consultants Fees,19/06/2013,4975,"1,485.90",EDEN ENVIRONMENT LTD,A01632,3,2013
Allerdale Borough Council,70104,VAT,Input VAT,VAT - 20%,12/06/2013,4976,132.39,ROSSENDALES LTD,A00964,3,2013
Allerdale Borough Council,70104,VAT,Input VAT,VAT - 20%,12/06/2013,4977,2.24,ROSSENDALES LTD,A00964,3,2013
Allerdale Borough Council,70104,VAT,Input VAT,VAT - 20%,12/06/2013,4978,3.75,ROSSENDALES LTD,A00964,3,2013
Allerdale Borough Council,70104,VAT,Input VAT,VAT - 20%,12/06/2013,4979,161.14,ROSSENDALES LTD,A00964,3,2013
Allerdale Borough Council,70104,VAT,Input VAT,VAT - 20%,12/06/2013,4980,8.9,ROSSENDALES LTD,A00964,3,2013
Allerdale Borough Council,15703,Supplies & Services,Shared IT Services,Call Charges,19/06/2013,4981,581.61,CABLE & WIRELESS/VODAFONE,A00934,3,2013
Allerdale Borough Council,12402,Premises,Tenanted Properties,Electricity,12/06/2013,4982,8.13,EON ,X00016,3,2013
Allerdale Borough Council,12408,Premises,Public Convenience Cleaning,Water & Sewage,12/06/2013,4983,21.03,UNITED UTILITIES ,X00011,3,2013
Allerdale Borough Council,35106,Income,Homelessness,Dwellings Income,12/06/2013,4984,56.85,ALLERDALE BOROUGH COUNCIL,A00342,3,2013
Allerdale Borough Council,15501,Supplies & Services,Environmental Protection,Consultants Fees,19/06/2013,4985,829.2,UNITED UTILITIES PLC,A01657,3,2013
Allerdale Borough Council,15505,Supplies & Services,Licensing Service,Licences,19/06/2013,4986,"2,689.30",NEWAUTO LTD T/A MOGO,A00303,3,2013
Allerdale Borough Council,51101,Capital Expenditure,KMAG Enhancement Project,External Contractor Payments (Capital),26/06/2013,4987,271.49,PRESERVATION EQUIPMENT,A01188,3,2013
Allerdale Borough Council,15903,Supplies & Services,Members Services,"Courses, Training & Seminars",12/06/2013,4988,495,LOCAL GOVERNMENT ASSOCIATION,A00686,3,2013
Allerdale Borough Council,15903,Supplies & Services,Members Services,"Courses, Training & Seminars",12/06/2013,4989,495,LOCAL GOVERNMENT ASSOCIATION,A00686,3,2013
Allerdale Borough Council,15550,Supplies & Services,Out of Hours Telephones,General-Service Related Fees,26/06/2013,4990,3.95,SITEXORBIS LIMITED,A00679,3,2013
Allerdale Borough Council,73102,Holding and Control Accounts,Busy Bees Childcare Scheme,Holding Accounts General - Expenditure,06/06/2013,4991,"1,069.00",COMPUTERSHARE VOUCHER SERVICES,A00991,3,2013
Allerdale Borough Council,12306,Premises,Public Convenience Cleaning,Legionella Inspections and Services,12/06/2013,4992,575.57,RENTOKIL INITIAL UK LTD - WATERSAFE,A01790,3,2013
Allerdale Borough Council,16150,Supplies & Services,Sports Development,General Promotions,12/06/2013,4993,59,Redacted information - included personal information ,M00165,3,2013
Allerdale Borough Council,15103,Supplies & Services,Elections,Purchase of Materials,12/06/2013,4994,99,SHAW & SONS LTD,A00025,3,2013
Allerdale Borough Council,16350,Supplies & Services,Elections,Miscellaneous Expenses,12/06/2013,4995,173.4,SHAW & SONS LTD,A00025,3,2013
Allerdale Borough Council,51101,Capital Expenditure,KMAG Enhancement Project,External Contractor Payments (Capital),26/06/2013,4996,19.75,PRESERVATION EQUIPMENT,A01188,3,2013
Allerdale Borough Council,15100,Supplies & Services,Shared IT Services,"Budget-Equipment, Furniture & Materials",26/06/2013,4997,235,RAP INDUSTRIES LTD,A01822,3,2013
Allerdale Borough Council,73101,Holding and Control Accounts,Allerdale House Tea Fund,Holding Accounts General - Income,04/06/2013,4998,100.95,BOOKER CASH & CARRY,A01419,3,2013
Allerdale Borough Council,15203,Supplies & Services,Members Services,Catering Costs and Consumables,19/06/2013,4999,63,MAGGIES BAKERY,A01685,3,2013
Allerdale Borough Council,12101,Premises,Car Parks Inspection & Maintenance,External Maintenance & Decoration,12/06/2013,5000,454,Redacted information - included personal information ,C00008,3,2013
Allerdale Borough Council,12101,Premises,Public Convenience Cleaning,External Maintenance & Decoration,12/06/2013,5001,110,UNBLOCK CUMBRIA LTD,C00005,3,2013
Allerdale Borough Council,14105,,Parking Services Pay Group,"Fuel, Lubricants & Consumables",,5002,481.09,BP OIL UK LTD ,X00022,3,2013
Allerdale Borough Council,15502,Supplies & Services,Legal Services,Land Registry Fees,10/06/2013,5003,52,HM LAND REGISTRY,A00505,3,2013
Allerdale Borough Council,72101,Holding and Control Accounts,Derwent and Solway,Expenditure,05/06/2013,5004,"4,612.97",DERWENT & SOLWAY,A00219,3,2013
Allerdale Borough Council,72101,Holding and Control Accounts,Derwent and Solway,Expenditure,05/06/2013,5005,"3,990.34",DERWENT & SOLWAY,A00219,3,2013
Allerdale Borough Council,70104,VAT,Input VAT,VAT - 20%,12/06/2013,5006,"2,858.64",Redacted information - included personal information ,M00166,3,2013
Allerdale Borough Council,33121,Income,Off-street - Owned,Excess Charges - Car Parks Income,12/06/2013,5007,25,Redacted information - included personal information ,M00167,3,2013
Allerdale Borough Council,33150,Income,Credit Union,Other Fees Income,12/06/2013,5008,"1,101.79",ALLERDALE CREDIT UNION OFFICE WORKINGTON,M00046,3,2013
Allerdale Borough Council,21150,Transfer Payments,Festivals & Events,General Grants,12/06/2013,5009,225,FRIENDS OF HARRINGTON NATURE RESERVE/YOUTH GROUP,M00168,3,2013
Allerdale Borough Council,21150,Transfer Payments,Festivals & Events,General Grants,12/06/2013,5010,"1,800.00",CUMBRIA FESTIVAL GROUP,M00169,3,2013
Allerdale Borough Council,21150,Transfer Payments,Festivals & Events,General Grants,12/06/2013,5011,450,WIGTON T.C.,X00099,3,2013
Allerdale Borough Council,16350,Supplies & Services,Enterprise Coaches,Miscellaneous Expenses,12/06/2013,5012,110.17,ALLERDALE BOROUGH COUNCIL,X00034,3,2013
Allerdale Borough Council,15201,Supplies & Services,Leaders Services,Entertainment Of Visitors,12/06/2013,5013,65.73,ALLERDALE BOROUGH COUNCIL,X00034,3,2013
Allerdale Borough Council,15401,Supplies & Services,Elections,General Stationery,12/06/2013,5014,320,FIRPRESS PRINTERS,A00063,3,2013
Allerdale Borough Council,12101,Premises,Car Parks Inspection & Maintenance,External Maintenance & Decoration,19/06/2013,5015,"2,871.00",JOHN ELLIOTT LIMITED,C00023,3,2013
Allerdale Borough Council,81602,Balance Sheet,General Fund,Prov-Insurance Excess (Balance Sheet),12/06/2013,5016,50,ZURICH MUNICIPAL,A00429,3,2013
Allerdale Borough Council,15405,Supplies & Services,Elections,Use of External Printers,12/06/2013,5017,676,FIRPRESS PRINTERS,A00063,3,2013
Allerdale Borough Council,15405,Supplies & Services,Elections,Use of External Printers,12/06/2013,5018,361,FIRPRESS PRINTERS,A00063,3,2013
Allerdale Borough Council,16150,Supplies & Services,Solway Wetlands Project,General Promotions,19/06/2013,5019,590,MICHAELA CORRIE GRAPHIC DESIGN,A00513,3,2013
Allerdale Borough Council,16350,Supplies & Services,Mayoral Services,Miscellaneous Expenses,12/06/2013,5020,170,JIM DAVIS PHOTOGRAPHY,A00627,3,2013
Allerdale Borough Council,10401,Employee Costs,IT - New Initiatives,Agency Staff Costs,12/06/2013,5021,975,HAYS,A00280,3,2013
Allerdale Borough Council,10401,Employee Costs,IT - New Initiatives,Agency Staff Costs,12/06/2013,5022,"1,300.00",HAYS,A00280,3,2013
Allerdale Borough Council,10401,Employee Costs,IT - New Initiatives,Agency Staff Costs,12/06/2013,5023,"1,300.00",HAYS,A00280,3,2013
Allerdale Borough Council,10401,Employee Costs,IT - New Initiatives,Agency Staff Costs,12/06/2013,5024,"1,300.00",HAYS,A00280,3,2013
Allerdale Borough Council,10401,Employee Costs,IT - New Initiatives,Agency Staff Costs,12/06/2013,5025,975,HAYS,A00280,3,2013
Allerdale Borough Council,10601,Employee Costs,Shared IT Services Pay Group,External Courses & Seminar Fees,03/07/2013,5026,25,GEOPLACE LLP,A01820,3,2013
Allerdale Borough Council,12103,Premises,Coastal Protection and Inland Flooding,Grounds Maintenance,12/06/2013,5027,"28,700.00",STOBBARTS LTD,C00002,3,2013
Allerdale Borough Council,51101,Capital Expenditure,KMAG Enhancement Project,External Contractor Payments (Capital),12/06/2013,5028,"5,354.00",MOSEDALE GILLATT,A01020,3,2013
Allerdale Borough Council,51101,Capital Expenditure,KMAG Enhancement Project,External Contractor Payments (Capital),26/06/2013,5029,"5,130.00",Redacted information - included personal information ,A01697,3,2013
Allerdale Borough Council,15405,Supplies & Services,Solway Coast AONB,Use of External Printers,12/06/2013,5030,"1,620.00",MICHAELA CORRIE GRAPHIC DESIGN,A00513,3,2013
Allerdale Borough Council,15401,Supplies & Services,Document Management Pay Group,General Stationery,26/06/2013,5031,91.3,LYRECO,A00043,3,2013
Allerdale Borough Council,15401,Supplies & Services,Document Management Pay Group,General Stationery,26/06/2013,5032,44,LYRECO,A00043,3,2013
Allerdale Borough Council,12403,Premises,Homelessness,Gas,03/07/2013,5033,37,MEPOS LIMITED,A01286,3,2013
Allerdale Borough Council,15601,Supplies & Services,Document Management Pay Group,Postage,26/06/2013,5034,166.89,LYRECO,A00043,3,2013
Allerdale Borough Council,16150,Supplies & Services,Carnegie Theatre,General Promotions,12/06/2013,5035,50,BURNLEY BOROUGH COUNCIL,A01628,3,2013
Allerdale Borough Council,12306,Premises,Public Convenience Cleaning,Legionella Inspections and Services,26/06/2013,5036,540,RENTOKIL INITIAL UK LTD,A00459,3,2013
Allerdale Borough Council,12306,Premises,Corporate Property,Legionella Inspections and Services,26/06/2013,5037,272,RENTOKIL INITIAL UK LTD,A00459,3,2013
Allerdale Borough Council,12103,Premises,Parks and Grounds Maintenance,Grounds Maintenance,12/06/2013,5038,"2,324.50",J PARKER DUTCH BULBS (W/S) LTD,A01729,3,2013
Allerdale Borough Council,12103,Premises,Risk Management,Grounds Maintenance,12/06/2013,5039,-10.5,J PARKER DUTCH BULBS (W/S) LTD,A01729,3,2013
Allerdale Borough Council,15602,Supplies & Services,Elections,Business Reply Licences,12/06/2013,5040,"7,258.48",ROYAL MAIL LETTERS,X00021,3,2013
Allerdale Borough Council,10601,Employee Costs,Training,External Courses & Seminar Fees,12/06/2013,5041,120,CARLISLE CITY COUNCIL,A00161,3,2013
Allerdale Borough Council,10601,Employee Costs,Training,External Courses & Seminar Fees,12/06/2013,5042,75,THE LANDLORDS ASSOCIATION LTD,A01833,3,2013
Allerdale Borough Council,16302,Supplies & Services,Training,Room Hire,12/06/2013,5043,200,COCKERMOUTH TOWN COUNCIL,A00586,3,2013
Allerdale Borough Council,10602,Employee Costs,Training,Post Entry Training,12/06/2013,5044,149,EMPTY HOMES NETWORK,A01207,3,2013
Allerdale Borough Council,15501,Supplies & Services,Homelessness,Consultants Fees,12/06/2013,5045,25.98,JAMES STREET GROUP PRACTICE,A00462,3,2013
Allerdale Borough Council,15601,Supplies & Services,Benefits,Postage,12/06/2013,5046,"14,442.08",ROYAL MAIL LETTERS,X00021,3,2013
Allerdale Borough Council,15501,Supplies & Services,Human Resources Pay Group,Consultants Fees,12/06/2013,5047,800,HAYS,A00280,3,2013
Allerdale Borough Council,15501,Supplies & Services,Human Resources Pay Group,Consultants Fees,12/06/2013,5048,800,HAYS,A00280,3,2013
Allerdale Borough Council,15501,Supplies & Services,Human Resources Pay Group,Consultants Fees,26/06/2013,5049,800,HAYS,A00280,3,2013
Allerdale Borough Council,10604,Employee Costs,Planning and Development,Hire of Training Rooms/Venues,12/06/2013,5050,37,ST MICHAELS CHURCH,A00452,3,2013
Allerdale Borough Council,15401,Supplies & Services,Building Control,General Stationery,19/06/2013,5051,152.91,LAKELAND OFFICEPOINT LTD/INTEGRITY,A00069,3,2013
Allerdale Borough Council,73102,Holding and Control Accounts,Busy Bees Childcare Scheme,Holding Accounts General - Expenditure,19/06/2013,5052,47.8,COMPUTERSHARE VOUCHER SERVICES,A00991,3,2013
Allerdale Borough Council,73102,Holding and Control Accounts,Busy Bees Childcare Scheme,Holding Accounts General - Expenditure,19/06/2013,5053,869,COMPUTERSHARE VOUCHER SERVICES,A00991,3,2013
Allerdale Borough Council,15505,Supplies & Services,Legal Services,Licences,26/06/2013,5054,500,SEFTON COUNCIL,A01521,3,2013
Allerdale Borough Council,15402,Supplies & Services,Multi-functional Printers,Photocopier Charges,03/07/2013,5055,"8,957.87",KONICA MINOLTA BUSINESS SOLUTIONS UK LTD,A01556,3,2013
Allerdale Borough Council,15514,Supplies & Services,Carnegie Theatre,Public Entertainment,12/06/2013,5056,"1,853.33",THE BLUES BAND (BATON PRODUCTIONS LTD),A01819,3,2013
Allerdale Borough Council,15203,Supplies & Services,Solway Coast AONB,Catering Costs and Consumables,03/07/2013,5057,417,COLMORE CATERING SERVICES,A01817,3,2013
Allerdale Borough Council,10401,Employee Costs,Communications and Marketing,Agency Staff Costs,19/06/2013,5058,666.45,HAYS,A00280,3,2013
Allerdale Borough Council,15506,Supplies & Services,Legal Services,Professional Services,26/06/2013,5059,85.6,FREETH CARTWRIGHT LLP,A01821,3,2013
Allerdale Borough Council,10601,Employee Costs,Training,External Courses & Seminar Fees,12/06/2013,5060,790,OCEAN MEDIA GROUP LTD,A01221,3,2013
Allerdale Borough Council,15903,Supplies & Services,Members Services,"Courses, Training & Seminars",12/06/2013,5061,705,OCEAN MEDIA GROUP LTD,A01221,3,2013
Allerdale Borough Council,15502,Supplies & Services,Legal Services,Land Registry Fees,12/06/2013,5062,80,HM LAND REGISTRY,A00834,3,2013
Allerdale Borough Council,16150,Supplies & Services,Town Centre Management,General Promotions,12/06/2013,5063,16,MARYPORT INFANTS SCHOOL,M00170,3,2013
Allerdale Borough Council,10201,Employee Costs,Finance and Accounting Pay Group,Long Service Awards,12/06/2013,5064,420,Redacted information - included personal information ,M00171,3,2013
Allerdale Borough Council,10602,Employee Costs,Training,Post Entry Training,19/06/2013,5065,133.33,INSTITUTE OF ACOUSTICS,A01259,3,2013
Allerdale Borough Council,12405,Premises,Enterprise Coaches,Rentals and Lease Charges,12/06/2013,5066,372,MARYPORT EDUCATIONAL SETTLEMENT,A00496,3,2013
Allerdale Borough Council,14101,,Homelessness,Vehicle Leasing,12/06/2013,5067,171.74,DOBIES VAUXHALL,A00254,3,2013
Allerdale Borough Council,14101,,Homelessness,Vehicle Leasing,12/06/2013,5068,515.22,DOBIES VAUXHALL,A00254,3,2013
Allerdale Borough Council,12408,Premises,Public Convenience Cleaning,Water & Sewage,12/06/2013,5069,"1,084.95",UNITED UTILITIES ,X00011,3,2013
Allerdale Borough Council,15505,Supplies & Services,Licensing Service,Licences,12/06/2013,5070,2,Redacted information - included personal information ,M00172,3,2013
Allerdale Borough Council,15505,Supplies & Services,Licensing Service,Licences,12/06/2013,5071,23,COCKERMOUTH CONSERVATIVE CLUB,M00173,3,2013
Allerdale Borough Council,10601,Employee Costs,Finance and Accounting Pay Group,External Courses & Seminar Fees,,5072,295.35,COPELAND BOROUGH COUNCIL,A00589,3,2013
Allerdale Borough Council,15101,Supplies & Services,Off-street - Owned,Equipment Costs,26/06/2013,5073,407.18,COBALT TELEPHONE TECHNOLOGY,A01008,3,2013
Allerdale Borough Council,15813,Supplies & Services,Shared IT Services,Software Miscellaneous,26/06/2013,5074,100,CABLE & WIRELESS/VODAFONE,A00934,3,2013
Allerdale Borough Council,15703,Supplies & Services,Out of Hours Telephones,Call Charges,12/06/2013,5075,108.74,BRITISH TELECOMMUNICATIONS,X00004,3,2013
Allerdale Borough Council,10601,Employee Costs,Finance and Accounting Pay Group,External Courses & Seminar Fees,,5076,-590.7,COPELAND BOROUGH COUNCIL,A00589,3,2013
Allerdale Borough Council,16003,Supplies & Services,Customer Services Pay Group,Security of Cash Movements,26/06/2013,5077,956.41,SECURITY PLUS LIMITED,A00503,3,2013
Allerdale Borough Council,15550,Supplies & Services,Out of Hours Telephones,General-Service Related Fees,12/06/2013,5078,7.9,SITEXORBIS LIMITED,A00679,3,2013
Allerdale Borough Council,15102,Supplies & Services,Solway Coast AONB,Equipment Repair & Maintenance,12/06/2013,5079,73.1,ASPATRIA FARMERS LIMITED,A00736,3,2013
Allerdale Borough Council,15550,Supplies & Services,Out of Hours Telephones,General-Service Related Fees,26/06/2013,5080,659.35,SITEXORBIS LIMITED,A00679,3,2013
Allerdale Borough Council,15550,Supplies & Services,Out of Hours Telephones,General-Service Related Fees,12/06/2013,5081,436.8,SITEXORBIS LIMITED,A00679,3,2013
Allerdale Borough Council,20102,Third Party Payments,Recycling,Horticulture (Obsolete),19/06/2013,5082,"3,927.73",FCC RECYCLING (UK) LTD (ALCO),A00185,3,2013
Allerdale Borough Council,15512,Supplies & Services,Animal Welfare,Kennelling,19/06/2013,5083,"2,841.00",WHINMILL FARM CANINE CENTRE,A00117,3,2013
Allerdale Borough Council,15500,Supplies & Services,Planning Policy,Budget-Services,19/06/2013,5084,30,KESWICK TOWN COUNCIL,A00253,3,2013
Allerdale Borough Council,20102,Third Party Payments,Recycling,Horticulture (Obsolete),19/06/2013,5085,"3,014.82",FCC RECYCLING (UK) LTD (ALCO),A00185,3,2013
Allerdale Borough Council,15550,Supplies & Services,Recycling,General-Service Related Fees,19/06/2013,5086,913.26,SCOTTS HAULAGE,A00266,3,2013
Allerdale Borough Council,15403,Supplies & Services,Senior Mgt/PA Pay Group,Publications and Periodicals,19/06/2013,5087,8.1,P & D NEWSAGENTS,A00237,3,2013
Allerdale Borough Council,20102,Third Party Payments,Recycling,Horticulture (Obsolete),19/06/2013,5088,"3,964.50",THOMPSONS PLANT HIRE LTD,A00262,3,2013
Allerdale Borough Council,10401,Employee Costs,Environmental Services Pay Group,Agency Staff Costs,19/06/2013,5089,84,Redacted information - included personal information ,A00176,3,2013
Allerdale Borough Council,10401,Employee Costs,Environmental Services Pay Group,Agency Staff Costs,19/06/2013,5090,237.05,Redacted information - included personal information ,A00176,3,2013
Allerdale Borough Council,12101,Premises,Public Convenience Cleaning,External Maintenance & Decoration,19/06/2013,5091,110,UNBLOCK CUMBRIA LTD,C00005,3,2013
Allerdale Borough Council,12301,Premises,Corporate Property,Security,,5092,127.25,MASTIFF ELECTRICAL SYSTEM,A00021,3,2013
Allerdale Borough Council,10401,Employee Costs,IT - New Initiatives,Agency Staff Costs,19/06/2013,5093,"1,462.50",HAYS,A00280,3,2013
Allerdale Borough Council,10401,Employee Costs,IT - New Initiatives,Agency Staff Costs,10/07/2013,5094,"1,300.00",HAYS,A00280,3,2013
Allerdale Borough Council,20102,Third Party Payments,Recycling,Horticulture (Obsolete),19/06/2013,5095,"3,294.00",THOMPSONS PLANT HIRE LTD,A00262,3,2013
Allerdale Borough Council,20102,Third Party Payments,Recycling,Horticulture (Obsolete),19/06/2013,5096,214,THOMPSONS PLANT HIRE LTD,A00262,3,2013
Allerdale Borough Council,15550,Supplies & Services,Other Land & Buildings,General-Service Related Fees,10/07/2013,5097,"14,600.00",NPS NORTH WEST LTD,A01708,3,2013
Allerdale Borough Council,16150,Supplies & Services,Solway Wetlands Project,General Promotions,03/07/2013,5098,"1,270.35",SCOTTISH LIME CENTRE TRUST,A00494,3,2013
Allerdale Borough Council,15811,Supplies & Services,Shared IT Services,Software Maintenance,19/06/2013,5099,"2,081.67",IHS (GLOBAL) LIMITED,A01004,3,2013
Allerdale Borough Council,12101,Premises,Other Land & Buildings,External Maintenance & Decoration,19/06/2013,5100,450,FIRTH FABRICATION SERVICES,C00020,3,2013
Allerdale Borough Council,12303,Premises,Corporate Property,Window Cleaning,19/06/2013,5101,131.78,J A LEE WINDOWS,A00051,3,2013
Allerdale Borough Council,20305,Third Party Payments,Maryport Wave,Contract Services-Leisure Centres,19/06/2013,5102,"16,509.94",CARLISLE LEISURE LTD,A00136,3,2013
Allerdale Borough Council,20305,Third Party Payments,Sports & Leisure Centres,Contract Services-Leisure Centres,19/06/2013,5103,"49,805.50",CARLISLE LEISURE LTD,A00136,3,2013
Allerdale Borough Council,15100,Supplies & Services,Benefits,"Budget-Equipment, Furniture & Materials",03/07/2013,5104,168,CANFORD AUDIO PLC,A00570,3,2013
Allerdale Borough Council,12201,Premises,Corporate Property,Internal Maintenance,19/06/2013,5105,180,DESIGN GRID LTD,A01627,3,2013
Allerdale Borough Council,15103,Supplies & Services,Off-street - Owned,Purchase of Materials,19/06/2013,5106,198,NAGELS MULTIGRAPHIC LTD,A00690,3,2013
Allerdale Borough Council,12101,Premises,Public Convenience Cleaning,External Maintenance & Decoration,19/06/2013,5107,110,UNBLOCK CUMBRIA LTD,C00005,3,2013
Allerdale Borough Council,12101,Premises,Corporate Property,External Maintenance & Decoration,19/06/2013,5108,79.3,TRAVIS PERKINS,A00742,3,2013
Allerdale Borough Council,12101,Premises,Car Parks Inspection & Maintenance,External Maintenance & Decoration,19/06/2013,5109,822,Redacted information - included personal information ,C00008,3,2013
Allerdale Borough Council,51101,Capital Expenditure,KMAG Enhancement Project,External Contractor Payments (Capital),19/06/2013,5110,"1,419.58",CAPITA (TREE/HEDGEROWS),A00683,3,2013
Allerdale Borough Council,15811,Supplies & Services,Shared IT Services,Software Maintenance,19/06/2013,5111,"4,310.85",CIVICA UK LIMITED,A00006,3,2013
Allerdale Borough Council,16150,Supplies & Services,Solway Wetlands Project,General Promotions,10/07/2013,5112,489.95,WILDCARE,A01769,3,2013
Allerdale Borough Council,12405,Premises,Off-street - Owned,Rentals and Lease Charges,26/06/2013,5113,"5,737.00",CAPITA SYMONDS,A01748,3,2013
Allerdale Borough Council,15403,Supplies & Services,Environmental Services Pay Group,Publications and Periodicals,19/06/2013,5114,5.7,P & D NEWSAGENTS,A00237,3,2013
Allerdale Borough Council,15301,Supplies & Services,Recycling,Uniforms,26/06/2013,5115,16.84,ARCO LIMITED,A00045,3,2013
Allerdale Borough Council,12408,Premises,Corporate Property,Water & Sewage,19/06/2013,5116,152.78,UNITED UTILITIES ,X00011,3,2013
Allerdale Borough Council,70104,VAT,Input VAT,VAT - 20%,19/06/2013,5117,626.65,ROSSENDALES LTD,A00964,3,2013
Allerdale Borough Council,12408,Premises,Public Convenience Cleaning,Water & Sewage,19/06/2013,5118,817.2,UNITED UTILITIES ,X00011,3,2013
Allerdale Borough Council,12408,Premises,Public Convenience Cleaning,Water & Sewage,19/06/2013,5119,37.81,UNITED UTILITIES ,X00011,3,2013
Allerdale Borough Council,12408,Premises,Public Convenience Cleaning,Water & Sewage,19/06/2013,5120,777,UNITED UTILITIES ,X00011,3,2013
Allerdale Borough Council,15601,Supplies & Services,Revenue,Postage,19/06/2013,5121,200,ROYAL MAIL LETTERS,X00021,3,2013
Allerdale Borough Council,12408,Premises,Corporate Property,Water & Sewage,19/06/2013,5122,38.25,UNITED UTILITIES ,X00011,3,2013
Allerdale Borough Council,12408,Premises,Public Convenience Cleaning,Water & Sewage,19/06/2013,5123,71.33,UNITED UTILITIES ,X00011,3,2013
Allerdale Borough Council,12408,Premises,Corporate Property,Water & Sewage,19/06/2013,5124,128.74,UNITED UTILITIES ,X00011,3,2013
Allerdale Borough Council,12408,Premises,Public Convenience Cleaning,Water & Sewage,19/06/2013,5125,153.86,UNITED UTILITIES ,X00011,3,2013
Allerdale Borough Council,12408,Premises,Public Convenience Cleaning,Water & Sewage,19/06/2013,5126,113.62,UNITED UTILITIES ,X00011,3,2013
Allerdale Borough Council,12402,Premises,Corporate Property,Electricity,19/06/2013,5127,"3,685.58",N POWER ,X00015,3,2013
Allerdale Borough Council,12408,Premises,Corporate Property,Water & Sewage,19/06/2013,5128,212.05,N POWER,X00015,3,2013
Allerdale Borough Council,15301,Supplies & Services,Recycling,Uniforms,26/06/2013,5129,-10.64,ARCO LIMITED,A00045,3,2013
Allerdale Borough Council,12301,Premises,Corporate Property,Security,19/06/2013,5130,"2,016.00",G4S SECURE SOLUTIONS,A01597,3,2013
Allerdale Borough Council,12301,Premises,Corporate Property,Security,19/06/2013,5131,241.5,G4S SECURE SOLUTIONS,A01597,3,2013
Allerdale Borough Council,12301,Premises,Corporate Property,Security,19/06/2013,5132,252,G4S SECURE SOLUTIONS,A01597,3,2013
Allerdale Borough Council,12305,Premises,Other Land & Buildings,Inspections and Services,,5133,-70.24,PHS GROUP LTD,C00028,3,2013
Allerdale Borough Council,12305,Premises,Other Land & Buildings,Inspections and Services,,5134,70.24,PHS GROUP LTD,C00028,3,2013
Allerdale Borough Council,15405,Supplies & Services,Localities & Partnerships,Use of External Printers,26/06/2013,5135,108.05,ASTSIGNS LIMITED,A01473,3,2013
Allerdale Borough Council,20104,Third Party Payments,Street Cleansing,Street Cleansing,26/06/2013,5136,225,FIRPRESS PRINTERS,A00063,3,2013
Allerdale Borough Council,12201,Premises,Corporate Property,Internal Maintenance,19/06/2013,5137,"2,232.00",DERWENT FLOORING & CEILING CO,C00041,3,2013
Allerdale Borough Council,15501,Supplies & Services,Senior Mgt/PA Pay Group,Consultants Fees,03/07/2013,5138,"8,836.14",BERWICK PARTNERS,A01737,3,2013
Allerdale Borough Council,73102,Holding and Control Accounts,Allerdale House Tea Fund,Holding Accounts General - Expenditure,19/06/2013,5139,91.2,TELK LTD,A01670,3,2013
Allerdale Borough Council,12201,Premises,Corporate Property,Internal Maintenance,17/06/2013,5140,-850,BARRIE HAIGH PAINTING CONTRACTOR,A01607,3,2013
Allerdale Borough Council,12201,Premises,Tenanted Properties,Internal Maintenance,17/06/2013,5141,-450,BARRIE HAIGH PAINTING CONTRACTOR,A01607,3,2013
Allerdale Borough Council,12201,Premises,Tenanted Properties,Internal Maintenance,19/06/2013,5142,450,BARRIE HAIGH PAINTING CONTRACTOR,A01607,3,2013
Allerdale Borough Council,12201,Premises,Corporate Property,Internal Maintenance,19/06/2013,5143,850,BARRIE HAIGH PAINTING CONTRACTOR,A01607,3,2013
Allerdale Borough Council,12405,Premises,Multi-storey Car Park,Rentals and Lease Charges,26/06/2013,5144,"62,602.20",RIDDELLTPS,A00824,3,2013
Allerdale Borough Council,15401,Supplies & Services,Document Management Pay Group,General Stationery,26/06/2013,5145,30.13,LYRECO,A00043,3,2013
Allerdale Borough Council,15603,Supplies & Services,Document Management Pay Group,Franking Machine Costs,26/06/2013,5146,300,FP EXECUTIVE AGENCY LTD,A00733,3,2013
Allerdale Borough Council,15803,Supplies & Services,Planning Service Del Improvement,Hardware Purchase,10/07/2013,5147,643.09,KELWAY UK LTD,A00771,3,2013
Allerdale Borough Council,12103,Premises,Coastal Protection and Inland Flooding,Grounds Maintenance,19/06/2013,5148,"2,550.00",FIRTH FABRICATION SERVICES,C00020,3,2013
Allerdale Borough Council,15510,Supplies & Services,Environmental Protection,Disposal of Waste,19/06/2013,5149,312.84,WF CLEANING SERVICES LTD,C00013,3,2013
Allerdale Borough Council,15601,Supplies & Services,Benefits,Postage,19/06/2013,5150,"1,188.33",ROYAL MAIL LETTERS,X00021,3,2013
Allerdale Borough Council,15601,Supplies & Services,Benefits,Postage,19/06/2013,5151,"2,544.54",ROYAL MAIL LETTERS,X00021,3,2013
Allerdale Borough Council,15602,Supplies & Services,Elections,Business Reply Licences,19/06/2013,5152,"20,821.58",ROYAL MAIL LETTERS,X00021,3,2013
Allerdale Borough Council,15602,Supplies & Services,Elections,Business Reply Licences,19/06/2013,5153,"4,600.08",ROYAL MAIL LETTERS,X00021,3,2013
Allerdale Borough Council,15602,Supplies & Services,Elections,Business Reply Licences,19/06/2013,5154,176.49,ROYAL MAIL LETTERS,X00021,3,2013
Allerdale Borough Council,72109,,9104,72109 - Post Payment Tax Account,21/06/2013,5155,"1,724.60",INLAND REVENUE ,X00023,3,2013
Allerdale Borough Council,15550,Supplies & Services,Carnegie Theatre,General-Service Related Fees,19/06/2013,5156,22.96,TICKETS.COM LTD,A00371,3,2013
Allerdale Borough Council,20150,Third Party Payments,Multi-storey Car Park,General Partnership Service Fees,19/06/2013,5157,"32,878.16",PARKSAFE,A00647,3,2013
Allerdale Borough Council,15810,Supplies & Services,Communications and Marketing,Software Licences,19/06/2013,5158,227.17,PHOENIX SOFTWARE LTD,A00229,3,2013
Allerdale Borough Council,15810,Supplies & Services,Communications and Marketing,Software Licences,19/06/2013,5159,110.7,PHOENIX SOFTWARE LTD,A00229,3,2013
Allerdale Borough Council,15811,Supplies & Services,Shared IT Services,Software Maintenance,26/06/2013,5160,250,MIDLAND SOFTWARE LTD,A00296,3,2013
Allerdale Borough Council,15811,Supplies & Services,Shared IT Services,Software Maintenance,26/06/2013,5161,"2,966.29",MIDLAND SOFTWARE LTD,A00296,3,2013
Allerdale Borough Council,20150,Third Party Payments,Multi-storey Car Park,General Partnership Service Fees,26/06/2013,5162,"43,195.33",PARKSAFE,A00647,3,2013
Allerdale Borough Council,16302,Supplies & Services,Members Services,Room Hire,26/06/2013,5163,144,CUMB RURAL ENTERPRISE AGENCY,A01640,3,2013
Allerdale Borough Council,16302,Supplies & Services,Members Services,Room Hire,19/06/2013,5164,108,OVAL,M00135,3,2013
Allerdale Borough Council,12301,Premises,Corporate Property,Security,03/07/2013,5165,58,MASTIFF ELECTRICAL SYSTEM,A00021,3,2013
Allerdale Borough Council,10801,Employee Costs,Insurances,Insurance of Employees,19/06/2013,5166,"1,689.78",ZURICH MUNICIPAL,A00429,3,2013
Allerdale Borough Council,15501,Supplies & Services,Human Resources Pay Group,Consultants Fees,19/06/2013,5167,400,HAYS,A00280,3,2013
Allerdale Borough Council,15501,Supplies & Services,Human Resources Pay Group,Consultants Fees,19/06/2013,5168,800,HAYS,A00280,3,2013
Allerdale Borough Council,16102,Supplies & Services,Town Centre Management,Regeneration Initiatives,19/06/2013,5169,100,MOSS BAY ARTS,A01149,3,2013
Allerdale Borough Council,15703,Supplies & Services,Carnegie Theatre,Call Charges,19/06/2013,5170,474.79,BRITISH TELECOMMUNICATIONS,X00004,3,2013
Allerdale Borough Council,12402,Premises,Car Parks Inspection & Maintenance,Electricity,19/06/2013,5171,81.34,N POWER,X00015,3,2013
Allerdale Borough Council,12402,Premises,Footways,Electricity,19/06/2013,5172,181.84,N POWER,X00015,3,2013
Allerdale Borough Council,12402,Premises,Footways,Electricity,19/06/2013,5173,"4,722.10",N POWER,X00015,3,2013
Allerdale Borough Council,12402,Premises,Car Parks Inspection & Maintenance,Electricity,19/06/2013,5174,300.31,N POWER,X00015,3,2013
Allerdale Borough Council,15502,Supplies & Services,Legal Services,Land Registry Fees,18/06/2013,5175,21,HM LAND REGISTRY ,A00505,3,2013
Allerdale Borough Council,54105,Capital Expenditure,Disabled Facilities Grants,Grants  Private Individuals (Capital),19/06/2013,5176,"1,668.53",DOLPHIN STAIRLIFTS CUMBRIA,X00107,3,2013
Allerdale Borough Council,54105,Capital Expenditure,Disabled Facilities Grants,Grants  Private Individuals (Capital),19/06/2013,5177,"1,620.00",DOLPHIN STAIRLIFTS CUMBRIA,X00107,3,2013
Allerdale Borough Council,54105,Capital Expenditure,Disabled Facilities Grants,Grants  Private Individuals (Capital),19/06/2013,5178,"3,500.00",BLUE FLAME SERVICES LTD,X00213,3,2013
Allerdale Borough Council,54105,Capital Expenditure,Disabled Facilities Grants,Grants  Private Individuals (Capital),19/06/2013,5179,"3,198.50",TOTAL HYGIENE LTD,X00151,3,2013
Allerdale Borough Council,15403,Supplies & Services,Solway Coast AONB,Publications and Periodicals,19/06/2013,5180,101.65,ALLERDALE BOROUGH COUNCIL,X00034,3,2013
Allerdale Borough Council,12101,Premises,Corporate Property,External Maintenance & Decoration,19/06/2013,5181,79.3,TRAVIS PERKINS,A00742,3,2013
Allerdale Borough Council,12302,Premises,Carnegie Theatre,Building Cleaning,19/06/2013,5182,87.55,J A LEE WINDOWS,A00051,3,2013
Allerdale Borough Council,15808,Supplies & Services,Multi-functional Printers,Computer Consumables,03/07/2013,5183,62.21,THE SMART CARD STORE LTD,A01513,3,2013
Allerdale Borough Council,10202,Employee Costs,Human Resources Pay Group,Medical Screening,10/07/2013,5184,257.5,WELLWORK LTD,A00029,3,2013
Allerdale Borough Council,20102,Third Party Payments,Parks and Grounds Maintenance,Horticulture (Obsolete),19/06/2013,5185,"94,110.00",ISS WATERERS LANDSCAPE,C00044,3,2013
Allerdale Borough Council,12501,Premises,Public Convenience Cleaning,NNDR and Other Occupancy Charges,19/06/2013,5186,10,THE NATIONAL TRUST,A01009,3,2013
Allerdale Borough Council,15508,Supplies & Services,Senior Mgt/PA Pay Group,Subscriptions,10/07/2013,5187,377,SOLACE,A01802,3,2013
Allerdale Borough Council,20102,Third Party Payments,Parks and Grounds Maintenance,Horticulture (Obsolete),19/06/2013,5188,"92,958.00",ISS WATERERS LANDSCAPE,C00044,3,2013
Allerdale Borough Council,16150,Supplies & Services,Solway Wetlands Project,General Promotions,19/06/2013,5189,100,BRITISH ARCHAEOLOGICAL JOBS & RESOURCES,A01837,3,2013
Allerdale Borough Council,15502,Supplies & Services,Legal Services,Land Registry Fees,19/06/2013,5190,80,HM LAND REGISTRY,A00834,3,2013
Allerdale Borough Council,15405,Supplies & Services,Elections,Use of External Printers,19/06/2013,5192,209,FIRPRESS PRINTERS,A00063,3,2013
Allerdale Borough Council,15101,Supplies & Services,Public Building Cleaning,Equipment Costs,10/07/2013,5193,184.14,WF HYGIENE & CLEANING SUPPLIES,A01794,3,2013
Allerdale Borough Council,15550,Supplies & Services,Carnegie Theatre,General-Service Related Fees,26/06/2013,5194,10,TRANSACTION NETWORK SERVICES (UK) LTD,A01778,3,2013
Allerdale Borough Council,15202,Supplies & Services,Carnegie Theatre,Bar Provision,19/06/2013,5195,11.84,SOLWAY HEATERS LTD,A00305,3,2013
Allerdale Borough Council,12307,Premises,Corporate Property,Fixtures and Fittings,03/07/2013,5196,132.03,THYSSENKRUPP ELEVATOR UK LTD,C00072,3,2013
Allerdale Borough Council,54105,Capital Expenditure,Disabled Facilities Grants,Grants  Private Individuals (Capital),19/06/2013,5197,"4,000.00",K BAILIFF & SON LIMITED,X00116,3,2013
Allerdale Borough Council,54105,Capital Expenditure,Disabled Facilities Grants,Grants  Private Individuals (Capital),19/06/2013,5198,"4,250.00",DOLPHIN STAIRLIFTS CUMBRIA,X00107,3,2013
Allerdale Borough Council,10401,Employee Costs,Planning and Development,Agency Staff Costs,19/06/2013,5199,931.01,THE OYSTER PARTNERSHIP LTD,C00118,3,2013
Allerdale Borough Council,10400,Employee Costs,Planning and Development,Budget-Agency Staff,19/06/2013,5200,918.56,THE OYSTER PARTNERSHIP LTD,C00118,3,2013
Allerdale Borough Council,10400,Employee Costs,Planning and Development,Budget-Agency Staff,19/06/2013,5201,846.98,THE OYSTER PARTNERSHIP LTD,C00118,3,2013
Allerdale Borough Council,10400,Employee Costs,Planning and Development,Budget-Agency Staff,19/06/2013,5202,925.62,THE OYSTER PARTNERSHIP LTD,C00118,3,2013
Allerdale Borough Council,12405,Premises,Enterprise Coaches,Rentals and Lease Charges,19/06/2013,5203,"1,654.50",MILLOM NETWORK CENTRE,A01083,3,2013
Allerdale Borough Council,12405,Premises,Enterprise Coaches,Rentals and Lease Charges,19/06/2013,5204,518.96,ALLERDALE BOROUGH COUNCIL,X00034,3,2013
Allerdale Borough Council,10400,Employee Costs,Planning and Development,Budget-Agency Staff,19/06/2013,5205,923.23,THE OYSTER PARTNERSHIP LTD,C00118,3,2013
Allerdale Borough Council,12303,Premises,Corporate Property,Window Cleaning,19/06/2013,5206,234.85,J A LEE WINDOWS,A00051,3,2013
Allerdale Borough Council,33150,Income,Animal Welfare,Other Fees Income,19/06/2013,5207,30,Redacted information - included personal information ,M00174,3,2013
Allerdale Borough Council,16101,Supplies & Services,Planning and Development,Statutory Notices,19/06/2013,5208,"3,024.89",CUMBRIA CC - 3C STUDIO,A00070,3,2013
Allerdale Borough Council,15813,Supplies & Services,Shared IT Services,Software Miscellaneous,03/07/2013,5209,"1,680.00",RANDOMSTORM,A01609,3,2013
Allerdale Borough Council,15501,Supplies & Services,Human Resources Pay Group,Consultants Fees,10/07/2013,5210,800,HAYS,A00280,3,2013
Allerdale Borough Council,10500,Employee Costs,Corporate Recruitment,Budget-Recruitment Expenses,19/06/2013,5211,131.66,HUNDAY MANOR HOTEL,A00278,3,2013
Allerdale Borough Council,10500,Employee Costs,Corporate Recruitment,Budget-Recruitment Expenses,19/06/2013,5212,131.66,HUNDAY MANOR HOTEL,A00278,3,2013
Allerdale Borough Council,10500,Employee Costs,Corporate Recruitment,Budget-Recruitment Expenses,19/06/2013,5213,131.68,HUNDAY MANOR HOTEL,A00278,3,2013
Allerdale Borough Council,10500,Employee Costs,Corporate Recruitment,Budget-Recruitment Expenses,19/06/2013,5214,131.66,HUNDAY MANOR HOTEL,A00278,3,2013
Allerdale Borough Council,10500,Employee Costs,Corporate Recruitment,Budget-Recruitment Expenses,19/06/2013,5215,237.5,HUNDAY MANOR HOTEL,A00278,3,2013
Allerdale Borough Council,15501,Supplies & Services,Planning and Development,Consultants Fees,19/06/2013,5216,"10,483.10",WARDELL ARMSTRONG LLP,A01676,3,2013
Allerdale Borough Council,15501,Supplies & Services,Planning and Development,Consultants Fees,,5217,"9,213.10",WARDELL ARMSTRONG LLP,A01676,3,2013
Allerdale Borough Council,15501,Supplies & Services,Planning and Development,Consultants Fees,,5218,"-10,483.10",WARDELL ARMSTRONG LLP,A01676,3,2013
Allerdale Borough Council,12405,Premises,Off-street - Owned,Rentals and Lease Charges,19/06/2013,5219,"15,206.04",CAPITA SYMONDS,A01748,3,2013
Allerdale Borough Council,70104,VAT,Input VAT,VAT - 20%,19/06/2013,5220,266.9,ROSSENDALES LTD,A00964,3,2013
Allerdale Borough Council,34101,Income,Credit Union,Legal Costs Income,19/06/2013,5221,"1,464.84",THE ALLERDALE CREDIT UNION,A00493,3,2013
Allerdale Borough Council,16150,Supplies & Services,Solway Wetlands Project,General Promotions,19/06/2013,5222,83.71,ALLERDALE BOROUGH COUNCIL,X00034,3,2013
Allerdale Borough Council,16101,Supplies & Services,Finance and Accounting Pay Group,Statutory Notices,10/07/2013,5223,71.76,MCKANES PRINTERS,A01507,3,2013
Allerdale Borough Council,12201,Premises,Homelessness,Internal Maintenance,19/06/2013,5224,35.8,TRAVIS PERKINS,A00742,3,2013
Allerdale Borough Council,14104,,Public Convenience Cleaning,Repairs & Maintenance,19/06/2013,5225,115.24,FCC ENVIRONMENT SERVICES (FOCSA),A00085,3,2013
Allerdale Borough Council,10401,Employee Costs,Communications and Marketing,Agency Staff Costs,10/07/2013,5226,666.45,HAYS,A00280,3,2013
Allerdale Borough Council,10401,Employee Costs,Communications and Marketing,Agency Staff Costs,10/07/2013,5227,666.45,HAYS,A00280,3,2013
Allerdale Borough Council,15401,Supplies & Services,Solway Coast AONB,General Stationery,10/07/2013,5228,78.66,VIKING DIRECT,A00828,3,2013
Allerdale Borough Council,12304,Premises,Trade Waste,Trade Refuse,10/07/2013,5229,"9,000.00",EGBERT H TAYLOR & COMPANY LTD,A01706,3,2013
Allerdale Borough Council,12303,Premises,Carnegie Theatre,Window Cleaning,19/06/2013,5230,39.14,J A LEE WINDOWS,A00051,3,2013
Allerdale Borough Council,15405,Supplies & Services,Off-street - Owned,Use of External Printers,26/06/2013,5231,100,FIRPRESS PRINTERS,A00063,3,2013
Allerdale Borough Council,10500,Employee Costs,Corporate Recruitment,Budget-Recruitment Expenses,26/06/2013,5232,65.83,HUNDAY MANOR HOTEL,A00278,3,2013
Allerdale Borough Council,10500,Employee Costs,Corporate Recruitment,Budget-Recruitment Expenses,26/06/2013,5233,131.66,HUNDAY MANOR HOTEL,A00278,3,2013
Allerdale Borough Council,10500,Employee Costs,Corporate Recruitment,Budget-Recruitment Expenses,26/06/2013,5234,131.66,HUNDAY MANOR HOTEL,A00278,3,2013
Allerdale Borough Council,12306,Premises,Public Convenience Cleaning,Legionella Inspections and Services,03/07/2013,5235,173.72,RENTOKIL INITIAL UK LTD - WATERSAFE,A01790,3,2013
Allerdale Borough Council,12402,Premises,Corporate Property,Electricity,26/06/2013,5236,"1,481.93",N POWER ,X00015,3,2013
Allerdale Borough Council,12402,Premises,Public Convenience Cleaning,Electricity,26/06/2013,5237,3.19,N POWER ,X00015,3,2013
Allerdale Borough Council,12402,Premises,Corporate Property,Electricity,26/06/2013,5238,145.15,N POWER ,X00015,3,2013
Allerdale Borough Council,12402,Premises,Corporate Property,Electricity,26/06/2013,5239,163.61,N POWER ,X00015,3,2013
Allerdale Borough Council,12402,Premises,Corporate Property,Electricity,26/06/2013,5240,-299.37,N POWER ,X00015,3,2013
Allerdale Borough Council,12402,Premises,Other Land & Buildings,Electricity,26/06/2013,5241,4.68,N POWER ,X00015,3,2013
Allerdale Borough Council,12402,Premises,Corporate Property,Electricity,26/06/2013,5242,3.31,N POWER ,X00015,3,2013
Allerdale Borough Council,12402,Premises,Public Convenience Cleaning,Electricity,26/06/2013,5243,19.45,N POWER ,X00015,3,2013
Allerdale Borough Council,12402,Premises,Public Convenience Cleaning,Electricity,26/06/2013,5244,23.17,N POWER ,X00015,3,2013
Allerdale Borough Council,12402,Premises,Public Convenience Cleaning,Electricity,26/06/2013,5245,36.08,N POWER ,X00015,3,2013
Allerdale Borough Council,12402,Premises,Public Convenience Cleaning,Electricity,26/06/2013,5246,36.19,N POWER ,X00015,3,2013
Allerdale Borough Council,12402,Premises,Public Convenience Cleaning,Electricity,26/06/2013,5247,36.18,N POWER ,X00015,3,2013
Allerdale Borough Council,12402,Premises,Public Convenience Cleaning,Electricity,26/06/2013,5248,-59.98,N POWER ,X00015,3,2013
Allerdale Borough Council,12402,Premises,Public Convenience Cleaning,Electricity,26/06/2013,5249,-113.66,N POWER ,X00015,3,2013
Allerdale Borough Council,12402,Premises,Public Convenience Cleaning,Electricity,26/06/2013,5250,-176.55,N POWER ,X00015,3,2013
Allerdale Borough Council,12402,Premises,Public Convenience Cleaning,Electricity,26/06/2013,5251,-174.27,N POWER ,X00015,3,2013
Allerdale Borough Council,12402,Premises,Public Convenience Cleaning,Electricity,26/06/2013,5252,-173.93,N POWER ,X00015,3,2013
Allerdale Borough Council,12402,Premises,Public Convenience Cleaning,Electricity,26/06/2013,5253,11.1,N POWER ,X00015,3,2013
Allerdale Borough Council,12402,Premises,Public Convenience Cleaning,Electricity,26/06/2013,5254,-26.25,N POWER ,X00015,3,2013
Allerdale Borough Council,12402,Premises,Public Convenience Cleaning,Electricity,26/06/2013,5255,521.33,N POWER ,X00015,3,2013
Allerdale Borough Council,12402,Premises,Public Convenience Cleaning,Electricity,26/06/2013,5256,267.71,N POWER ,X00015,3,2013
Allerdale Borough Council,12402,Premises,Tenanted Properties,Electricity,26/06/2013,5257,419.54,N POWER ,X00015,3,2013
Allerdale Borough Council,12402,Premises,Car Parks Inspection & Maintenance,Electricity,26/06/2013,5258,12.15,N POWER ,X00015,3,2013
Allerdale Borough Council,12402,Premises,Tenanted Properties,Electricity,26/06/2013,5259,88.56,N POWER ,X00015,3,2013
Allerdale Borough Council,10502,Employee Costs,Corporate Recruitment,Interview Expenses,26/06/2013,5260,132.8,Redacted information - included personal information ,M00175,3,2013
Allerdale Borough Council,10502,Employee Costs,Corporate Recruitment,Interview Expenses,26/06/2013,5261,98,Redacted information - included personal information ,M00176,3,2013
Allerdale Borough Council,15812,Supplies & Services,Shared IT Services,Software Development,,5262,619.9,HSBC CARD SERVICES,X00000,3,2013
Allerdale Borough Council,10502,Employee Costs,Corporate Recruitment,Interview Expenses,26/06/2013,5263,107.64,Redacted information - included personal information ,M00178,3,2013
Allerdale Borough Council,12103,Premises,Parks and Grounds Maintenance,Grounds Maintenance,26/06/2013,5264,313.14,KERNOCK PARK PLANTS,A01770,3,2013
Allerdale Borough Council,12408,Premises,Public Convenience Cleaning,Water & Sewage,26/06/2013,5265,270.09,UNITED UTILITIES,X00011,3,2013
Allerdale Borough Council,12103,Premises,Parks and Grounds Maintenance,Grounds Maintenance,26/06/2013,5266,594.02,KERNOCK PARK PLANTS,A01770,3,2013
Allerdale Borough Council,16302,Supplies & Services,Members Services,Room Hire,26/06/2013,5267,80,CARLISLE LEISURE LTD,A00136,3,2013
Allerdale Borough Council,15508,Supplies & Services,Planning and Development,Subscriptions,26/06/2013,5268,360,CIPFA BUSINESS LIMITED,A01653,3,2013
Allerdale Borough Council,15500,Supplies & Services,Food and Occupational Health,Budget-Services,26/06/2013,5269,235,MP MARINE LTD,A00113,3,2013
Allerdale Borough Council,15102,Supplies & Services,Off-street - Owned,Equipment Repair & Maintenance,10/07/2013,5270,156.39,METRIC GROUP LTD,A00568,3,2013
Allerdale Borough Council,20101,Third Party Payments,Recycling,Cleansing Contract,26/06/2013,5271,"369,686.25",FCC ENVIRONMENT SERVICES (FOCSA),A00085,3,2013
Allerdale Borough Council,15101,Supplies & Services,Public Building Cleaning,Equipment Costs,26/06/2013,5272,723,INSTOCK (CHANDLERS),A00050,3,2013
Allerdale Borough Council,14104,,Parking Services Pay Group,Repairs & Maintenance,26/06/2013,5273,7,FCC ENVIRONMENT SERVICES (FOCSA),A00085,3,2013
Allerdale Borough Council,10202,Employee Costs,Health and Safety,Medical Screening,26/06/2013,5274,170,SPECSAVERS,A00026,3,2013
Allerdale Borough Council,12305,Premises,Corporate Property,Inspections and Services,26/06/2013,5275,51.6,BORDER FOOD MACHINERY,A00388,3,2013
Allerdale Borough Council,15811,Supplies & Services,Shared IT Services,Software Maintenance,26/06/2013,5276,"4,965.22",HALAROSE LIMITED,A00012,3,2013
Allerdale Borough Council,10401,Employee Costs,Communications and Marketing,Agency Staff Costs,17/07/2013,5277,666.45,HAYS,A00280,3,2013
Allerdale Borough Council,10401,Employee Costs,IT - New Initiatives,Agency Staff Costs,26/06/2013,5278,"1,930.00",TOTALMOBILE LIMITED,A01712,3,2013
Allerdale Borough Council,12103,Premises,Coastal Protection and Inland Flooding,Grounds Maintenance,10/07/2013,5279,585.52,GLASDON UK LIMITED,C00029,3,2013
Allerdale Borough Council,15510,Supplies & Services,Confidential Waste,Disposal of Waste,10/07/2013,5280,117.5,P&W CONFIDENTIAL BUSINESS SERVICE,A01498,3,2013
Allerdale Borough Council,15405,Supplies & Services,Off-street - Owned,Use of External Printers,03/07/2013,5281,85,FIRPRESS PRINTERS,A00063,3,2013
Allerdale Borough Council,15811,Supplies & Services,Shared IT Services,Software Maintenance,03/07/2013,5282,"1,250.00",MIDLAND SOFTWARE LTD,A00296,3,2013
Allerdale Borough Council,15501,Supplies & Services,Human Resources Pay Group,Consultants Fees,26/06/2013,5283,193.05,BURNETTS SOLICITORS,A00129,3,2013
Allerdale Borough Council,15501,Supplies & Services,Homelessness,Consultants Fees,26/06/2013,5284,50,SOLWAY MEDICAL SERVICES,A00588,3,2013
Allerdale Borough Council,15401,Supplies & Services,Planning and Development,General Stationery,03/07/2013,5286,61.46,INTEGRITY OFFICE LTD,A00726,3,2013
Allerdale Borough Council,15508,Supplies & Services,Solway Coast AONB,Subscriptions,26/06/2013,5287,200,NAAONB,A00735,3,2013
Allerdale Borough Council,15811,Supplies & Services,Shared IT Services,Software Maintenance,17/07/2013,5288,"1,375.00",PETER LALLY & ASSOCIATES,A00288,3,2013
Allerdale Borough Council,15405,Supplies & Services,Members Services,Use of External Printers,26/06/2013,5289,200,FIRPRESS PRINTERS,A00063,3,2013
Allerdale Borough Council,15401,Supplies & Services,Senior Mgt/PA Pay Group,General Stationery,26/06/2013,5290,12,FIRPRESS PRINTERS,A00063,3,2013
Allerdale Borough Council,21203,Transfer Payments,Enterprise Coaches,Council Tax / Community Charge,26/06/2013,5291,"1,654.50",MILLOM NETWORK CENTRE,A01083,3,2013
Allerdale Borough Council,15750,Supplies & Services,Enterprise Coaches,General Telecommunications Costs,26/06/2013,5292,107.17,BRITISH TELECOMMUNICATIONS,X00004,3,2013
Allerdale Borough Council,15601,Supplies & Services,Revenue,Postage,26/06/2013,5293,300,ROYAL MAIL LETTERS,X00021,3,2013
Allerdale Borough Council,70104,VAT,Input VAT,VAT - 20%,03/07/2013,5294,327.9,JACOBS,A00495,3,2013
Allerdale Borough Council,70104,VAT,Input VAT,VAT - 20%,03/07/2013,5295,8.5,JACOBS,A00495,3,2013
Allerdale Borough Council,12402,Premises,Corporate Property,Electricity,26/06/2013,5296,926.16,N POWER,X00015,3,2013
Allerdale Borough Council,12403,Premises,Tenanted Properties,Gas,26/06/2013,5297,18.03,EON,X00016,3,2013
Allerdale Borough Council,12309,Premises,Corporate Property,Fire and Safety,26/06/2013,5298,50.44,ORIAN SOLUTIONS LTD,A01814,3,2013
Allerdale Borough Council,15401,Supplies & Services,Document Management Pay Group,General Stationery,10/07/2013,5299,187.54,SUPPLIES TEAM SOLUTIONS,A01776,3,2013
Allerdale Borough Council,15903,Supplies & Services,Members Services,"Courses, Training & Seminars",,5300,495,LOCAL GOVERNMENT ASSOCIATION,A00686,3,2013
Allerdale Borough Council,15903,Supplies & Services,Members Services,"Courses, Training & Seminars",,5301,-495,LOCAL GOVERNMENT ASSOCIATION,A00686,3,2013
Allerdale Borough Council,16350,Supplies & Services,Finance and Accounting Pay Group,Miscellaneous Expenses,26/06/2013,5302,5,Redacted information - included personal information ,M00179,3,2013
Allerdale Borough Council,16350,Supplies & Services,Finance and Accounting Pay Group,Miscellaneous Expenses,26/06/2013,5303,5,Redacted information - included personal information ,M00180,3,2013
Allerdale Borough Council,80901,Balance Sheet,General Fund,Cash in Hand (Balance Sheet),26/06/2013,5304,100,ALLERDALE BOROUGH COUNCIL,X00034,3,2013
Allerdale Borough Council,21150,Transfer Payments,Festivals & Events,General Grants,26/06/2013,5305,225,FRIENDS OF HARRINGTON NATURE RESERVE,M00181,3,2013
Allerdale Borough Council,14101,,Mayoral Services,Vehicle Leasing,26/06/2013,5306,135.93,EILBECK RENTAL,A01161,3,2013
Allerdale Borough Council,15804,Supplies & Services,Shared Revs & Bens IT Costs,Computer Data Lines B.T.,03/07/2013,5307,"23,632.50",CABLE & WIRELESS/VODAFONE,A00934,3,2013
Allerdale Borough Council,15508,Supplies & Services,Planning and Development,Subscriptions,26/06/2013,5308,845,HAYMARKET MEDIA GROUP,A00720,3,2013
Allerdale Borough Council,15300,Supplies & Services,Food and Occupational Health,Budget-Prov of Clothing and Equipment,26/06/2013,5309,176.04,SUNLIGHT SERVICE GROUP,A00027,3,2013
Allerdale Borough Council,15300,Supplies & Services,Food and Occupational Health,Budget-Prov of Clothing and Equipment,26/06/2013,5310,71.96,SUNLIGHT SERVICE GROUP,A00027,3,2013
Allerdale Borough Council,15405,Supplies & Services,Off-street - Owned,Use of External Printers,26/06/2013,5311,957,NAGELS MULTIGRAPHIC LTD,A00690,3,2013
Allerdale Borough Council,16150,Supplies & Services,Town Centre Management,General Promotions,26/06/2013,5312,430.8,ISS WATERERS LANDSCAPE,C00044,3,2013
Allerdale Borough Council,10401,Employee Costs,Communications and Marketing,Agency Staff Costs,17/07/2013,5313,666.45,HAYS,A00280,3,2013
Allerdale Borough Council,15513,Supplies & Services,Carnegie Theatre,Subcontractors - General,03/07/2013,5314,189.75,R W AUDIO,C00059,3,2013
Allerdale Borough Council,51101,Capital Expenditure,KMAG Enhancement Project,External Contractor Payments (Capital),03/07/2013,5315,"4,567.82",CAPITA (TREE/HEDGEROWS),A00683,3,2013
Allerdale Borough Council,51101,Capital Expenditure,KMAG Enhancement Project,External Contractor Payments (Capital),26/06/2013,5316,"2,000.00",CAPITA (TREE/HEDGEROWS),A00683,3,2013
Allerdale Borough Council,16003,Supplies & Services,Customer Services Pay Group,Security of Cash Movements,,5317,"1,045.46",SECURITY PLUS LIMITED,A00503,3,2013
Allerdale Borough Council,15501,Supplies & Services,Human Resources Pay Group,Consultants Fees,26/06/2013,5318,150,BURNETTS SOLICITORS,A00129,3,2013
Allerdale Borough Council,15513,Supplies & Services,Carnegie Theatre,Subcontractors - General,17/07/2013,5319,90.75,Redacted information - included personal information ,A01510,3,2013
Allerdale Borough Council,15101,Supplies & Services,Carnegie Theatre,Equipment Costs,26/06/2013,5320,39.2,GD MACBETH AND SON,A00221,3,2013
Allerdale Borough Council,15301,Supplies & Services,Parking Services Pay Group,Uniforms,10/07/2013,5321,28.06,KELTIC,A00017,3,2013
Allerdale Borough Council,16102,Supplies & Services,Town Centre Management,Regeneration Initiatives,17/07/2013,5322,250,Redacted information - included personal information ,A01317,3,2013
Allerdale Borough Council,53101,Capital Expenditure,IT Infrastructure,Purchase of Fixed Plant & Equip Capital,17/07/2013,5323,"2,250.00",ASTUN TECHNOLOGY LIMITED,A01234,3,2013
Allerdale Borough Council,15501,Supplies & Services,Street Cleansing,Consultants Fees,03/07/2013,5324,16.4,DUNDAS CHEMICAL CO (MOSSPARK),A00175,3,2013
Allerdale Borough Council,15501,Supplies & Services,Street Cleansing,Consultants Fees,10/07/2013,5325,16.4,DUNDAS CHEMICAL CO (MOSSPARK),A00175,3,2013
Allerdale Borough Council,10600,Employee Costs,Planning and Development,Budget-Training,03/07/2013,5326,850,NORTHGATE INFORMATION SOLUTIONS,A00213,3,2013
Allerdale Borough Council,15505,Supplies & Services,Planning and Development,Licences,26/06/2013,5327,43.5,CENTREMAPS,A00512,3,2013
Allerdale Borough Council,15501,Supplies & Services,Building Control,Consultants Fees,26/06/2013,5328,42,PK ELECTRICAL (CARLISLE) LTD,A00778,3,2013
Allerdale Borough Council,12101,Premises,Corporate Property,External Maintenance & Decoration,,5329,"2,517.16",CUMBRIA SUPERGLAZE,A00982,3,2013
Allerdale Borough Council,20102,Third Party Payments,Recycling,Horticulture (Obsolete),26/06/2013,5330,182.5,THOMPSONS PLANT HIRE LTD,A00262,3,2013
Allerdale Borough Council,15101,Supplies & Services,Street Cleansing,Equipment Costs,03/07/2013,5331,"2,000.00",PMC POLYTHENE LTD,A00194,3,2013
Allerdale Borough Council,12409,Premises,Insurances,Buildings and Contents Insurance,26/06/2013,5332,"1,358.50",AON UK LTD,A01698,3,2013
Allerdale Borough Council,15811,Supplies & Services,Parking Services Pay Group,Software Maintenance,26/06/2013,5333,46.4,CHIPSIDE LIMITED,A00004,3,2013
Allerdale Borough Council,10401,Employee Costs,IT - New Initiatives,Agency Staff Costs,17/07/2013,5334,975,HAYS,A00280,3,2013
Allerdale Borough Council,21150,Transfer Payments,Environmental Initiatives,General Grants,26/06/2013,5335,"5,000.00",CUMBRIA CC - GENERAL,A00066,3,2013
Allerdale Borough Council,10401,Employee Costs,IT - New Initiatives,Agency Staff Costs,26/06/2013,5336,965,TOTALMOBILE LIMITED,A01712,3,2013
Allerdale Borough Council,10401,Employee Costs,IT - New Initiatives,Agency Staff Costs,26/06/2013,5337,"1,930.00",TOTALMOBILE LIMITED,A01712,3,2013
Allerdale Borough Council,10401,Employee Costs,IT - New Initiatives,Agency Staff Costs,26/06/2013,5338,965,TOTALMOBILE LIMITED,A01712,3,2013
Allerdale Borough Council,20108,Third Party Payments,Banking and Interest,Audit Commission,03/07/2013,5339,"1,150.00",AUDIT COMMISSION,A00002,3,2013
Allerdale Borough Council,15704,Supplies & Services,Shared IT Services,Mobile Phones,26/06/2013,5340,979.69,VODAFONE,A00551,3,2013
Allerdale Borough Council,15102,Supplies & Services,Environmental Protection,Equipment Repair & Maintenance,17/07/2013,5341,751,GAS DATA LTD,A00378,3,2013
Allerdale Borough Council,15405,Supplies & Services,On street Parking,Use of External Printers,03/07/2013,5342,265,FIRPRESS PRINTERS,A00063,3,2013
Allerdale Borough Council,14104,,Off-street - Owned,Repairs & Maintenance,26/06/2013,5343,9.4,HI-Q TYRESERVICES,A00313,3,2013
Allerdale Borough Council,51101,Capital Expenditure,KMAG Enhancement Project,External Contractor Payments (Capital),17/07/2013,5344,276.64,MEACO MEASUREMENT & CONTROL LTD,A00879,3,2013
Allerdale Borough Council,12203,Premises,Public Convenience Cleaning,Plumbing and Heating Maintenance,26/06/2013,5345,904,Redacted information - included personal information ,C00008,3,2013
Allerdale Borough Council,12103,Premises,Coastal Protection and Inland Flooding,Grounds Maintenance,26/06/2013,5346,140,Redacted information - included personal information ,C00008,3,2013
Allerdale Borough Council,12408,Premises,Corporate Property,Water & Sewage,17/07/2013,5347,"1,562.50",RM WATER SERVICES,C00121,3,2013
Allerdale Borough Council,14104,,Public Convenience Cleaning,Repairs & Maintenance,03/07/2013,5348,220,ARTIFAX,C00000,3,2013
Allerdale Borough Council,12302,Premises,Carnegie Theatre,Building Cleaning,26/06/2013,5349,51.74,CATERITE FOOD & WINE SERVICE,A00210,3,2013
Allerdale Borough Council,15501,Supplies & Services,Planning and Development,Consultants Fees,26/06/2013,5350,500,KEPPIE MASSIE,A01574,3,2013
Allerdale Borough Council,16300,Supplies & Services,Enterprise Coaches,Budget-Miscellaneous,,5351,322,CARTRIDGE WORLD WORKINGTON,A01687,3,2013
Allerdale Borough Council,14150,,Gates Travel,General-Council Vehicles (Non-Capital),26/06/2013,5352,"1,728.98",GATES TRAVEL,A01525,3,2013
Allerdale Borough Council,15102,Supplies & Services,Museums,Equipment Repair & Maintenance,17/07/2013,5353,360,LANCASHIRE COUNTY COUNCIL,A00504,3,2013
Allerdale Borough Council,14202,,Trade Waste,Hire Car and petrol,17/07/2013,5354,56.3,ENTERPRISE RENT A CAR,A01367,3,2013
Allerdale Borough Council,15506,Supplies & Services,Legal Services,Professional Services,26/06/2013,5355,850,KINGS CHAMBERS,A00348,3,2013
Allerdale Borough Council,20102,Third Party Payments,Recycling,Horticulture (Obsolete),26/06/2013,5356,"4,186.68",FCC RECYCLING (UK) LTD (ALCO),A00185,3,2013
Allerdale Borough Council,20102,Third Party Payments,Recycling,Horticulture (Obsolete),26/06/2013,5357,"3,463.29",FCC RECYCLING (UK) LTD (ALCO),A00185,3,2013
Allerdale Borough Council,20102,Third Party Payments,Recycling,Horticulture (Obsolete),26/06/2013,5358,"4,436.00",THOMPSONS PLANT HIRE LTD,A00262,3,2013
Allerdale Borough Council,20102,Third Party Payments,Recycling,Horticulture (Obsolete),26/06/2013,5359,100,THOMPSONS PLANT HIRE LTD,A00262,3,2013
Allerdale Borough Council,20102,Third Party Payments,Recycling,Horticulture (Obsolete),03/07/2013,5360,190,THOMPSONS PLANT HIRE LTD,A00262,3,2013
Allerdale Borough Council,20102,Third Party Payments,Recycling,Horticulture (Obsolete),03/07/2013,5361,"2,616.00",THOMPSONS PLANT HIRE LTD,A00262,3,2013
Allerdale Borough Council,20102,Third Party Payments,Recycling,Horticulture (Obsolete),26/06/2013,5362,631.56,THOMPSONS PLANT HIRE LTD,A00262,3,2013
Allerdale Borough Council,15301,Supplies & Services,Recycling,Uniforms,03/07/2013,5363,20.52,ARCO LIMITED,A00045,3,2013
Allerdale Borough Council,70104,VAT,Input VAT,VAT - 20%,03/07/2013,5364,751.04,WORKINGTON PLAYGOERS,M00028,3,2013
Allerdale Borough Council,54105,Capital Expenditure,Disabled Facilities Grants,Grants  Private Individuals (Capital),03/07/2013,5365,"2,017.71",TYSSEN KRUPP ENCASA/LIFTABLE,X00105,3,2013
Allerdale Borough Council,54105,Capital Expenditure,Disabled Facilities Grants,Grants  Private Individuals (Capital),03/07/2013,5366,"1,660.00",TYSSEN KRUPP ENCASA/LIFTABLE,X00105,3,2013
Allerdale Borough Council,54105,Capital Expenditure,Disabled Facilities Grants,Grants  Private Individuals (Capital),03/07/2013,5367,"27,299.10",TOP NOTCH CONTRACTORS LTD,X00165,3,2013
Allerdale Borough Council,16350,Supplies & Services,Planning and Development,Miscellaneous Expenses,03/07/2013,5368,250,Redacted information - included personal information ,M00182,3,2013
Allerdale Borough Council,15509,Supplies & Services,Elections,Election Costs,03/07/2013,5369,100,ALLHALLOWS COMMUNITY CENTRE,M00049,3,2013
Allerdale Borough Council,15509,Supplies & Services,Elections,Election Costs,03/07/2013,5370,100,BASSENTHWAITE CHURCH ROOM,M00055,3,2013
Allerdale Borough Council,15509,Supplies & Services,Elections,Election Costs,03/07/2013,5371,144,BOLTONS VILLAGE HALL,M00060,3,2013
Allerdale Borough Council,15509,Supplies & Services,Elections,Election Costs,03/07/2013,5372,70,BELL INSTITUTE BOLTONGATE,M00056,3,2013
Allerdale Borough Council,15509,Supplies & Services,Elections,Election Costs,03/07/2013,5373,94,GLOBE HALL IREBY,M00079,3,2013
Allerdale Borough Council,15509,Supplies & Services,Elections,Election Costs,03/07/2013,5374,200,THE SNOOTY FOX COUNTRY INN ULDALE,M00136,3,2013
Allerdale Borough Council,15509,Supplies & Services,Elections,Election Costs,03/07/2013,5375,50,VILLAGE HALL MILLBECK,M00145,3,2013
Allerdale Borough Council,20111,Third Party Payments,Environmental Initiatives,Voluntary Organisations,03/07/2013,5376,"3,049.00",ISS WATERERS LANDSCAPE,C00044,3,2013
Allerdale Borough Council,12103,Premises,Parks and Grounds Maintenance,Grounds Maintenance,03/07/2013,5377,180.8,ISS WATERERS LANDSCAPE,C00044,3,2013
Allerdale Borough Council,12405,Premises,Homelessness,Rentals and Lease Charges,17/07/2013,5378,353.28,MAGPIE STORAGE LTD,A01786,3,2013
Allerdale Borough Council,12103,Premises,Coastal Protection and Inland Flooding,Grounds Maintenance,03/07/2013,5379,300,LAWSONS HAULAGE LTD,A01765,3,2013
Allerdale Borough Council,14104,,Asset Management Pay Group,Repairs & Maintenance,10/07/2013,5380,53,ENTERPRISE RENT A CAR,A01367,3,2013
Allerdale Borough Council,12103,Premises,Parks and Grounds Maintenance,Grounds Maintenance,03/07/2013,5381,380,ISS WATERERS LANDSCAPE,C00044,3,2013
Allerdale Borough Council,12103,Premises,Parks and Grounds Maintenance,Grounds Maintenance,03/07/2013,5382,489.4,ISS WATERERS LANDSCAPE,C00044,3,2013
Allerdale Borough Council,12101,Premises,Car Parks Inspection & Maintenance,External Maintenance & Decoration,17/07/2013,5383,122,JOHN ELLIOTT LIMITED,C00023,3,2013
Allerdale Borough Council,12203,Premises,Public Convenience Cleaning,Plumbing and Heating Maintenance,03/07/2013,5384,979,Redacted information - included personal information ,C00008,3,2013
Allerdale Borough Council,15501,Supplies & Services,Human Resources Pay Group,Consultants Fees,17/07/2013,5385,800,HAYS,A00280,3,2013
Allerdale Borough Council,15900,Supplies & Services,Members Services,Budget-Elected Members,03/07/2013,5386,55,JOHN HOBAN TRAVEL LTD,A00016,3,2013
Allerdale Borough Council,10401,Employee Costs,Public Convenience Cleaning,Agency Staff Costs,03/07/2013,5387,185.64,COCKERMOUTH TOWN COUNCIL,A00586,3,2013
Allerdale Borough Council,12103,Premises,Coastal Protection and Inland Flooding,Grounds Maintenance,17/07/2013,5388,115,JOHN ELLIOTT LIMITED,C00023,3,2013
Allerdale Borough Council,12405,Premises,Homelessness,Rentals and Lease Charges,17/07/2013,5389,"11,118.66",DERWENT & SOLWAY,A00219,3,2013
Allerdale Borough Council,10202,Employee Costs,Human Resources Pay Group,Medical Screening,03/07/2013,5390,69.74,WELLWORK LTD,A00029,3,2013
Allerdale Borough Council,15101,Supplies & Services,Public Building Cleaning,Equipment Costs,,5391,49.68,WF HYGIENE & CLEANING SUPPLIES,A01794,3,2013
Allerdale Borough Council,15512,Supplies & Services,Animal Welfare,Kennelling,03/07/2013,5392,"2,641.00",WHINMILL FARM CANINE CENTRE,A00117,3,2013
Allerdale Borough Council,15501,Supplies & Services,Planning and Development,Consultants Fees,17/07/2013,5393,900,KINGS CHAMBERS,A00348,3,2013
Allerdale Borough Council,15509,Supplies & Services,Elections,Election Costs,03/07/2013,5394,165.8,Redacted information - included personal information ,M00183,3,2013
Allerdale Borough Council,15509,Supplies & Services,Elections,Election Costs,03/07/2013,5395,199.4,Redacted information - included personal information ,M00184,3,2013
Allerdale Borough Council,15509,Supplies & Services,Elections,Election Costs,03/07/2013,5396,207.2,Redacted information - included personal information ,M00185,3,2013
Allerdale Borough Council,15509,Supplies & Services,Elections,Election Costs,03/07/2013,5397,180.8,Redacted information - included personal information ,M00186,3,2013
Allerdale Borough Council,15509,Supplies & Services,Elections,Election Costs,03/07/2013,5398,183,Redacted information - included personal information ,M00187,3,2013
Allerdale Borough Council,15509,Supplies & Services,Elections,Election Costs,03/07/2013,5399,201.8,Redacted information - included personal information ,M00188,3,2013
Allerdale Borough Council,15509,Supplies & Services,Elections,Election Costs,03/07/2013,5400,190.6,Redacted information - included personal information ,M00189,3,2013
Allerdale Borough Council,15509,Supplies & Services,Elections,Election Costs,03/07/2013,5401,115,Redacted information - included personal information ,M00190,3,2013
Allerdale Borough Council,15509,Supplies & Services,Elections,Election Costs,03/07/2013,5402,132.76,Redacted information - included personal information ,M00191,3,2013
Allerdale Borough Council,15509,Supplies & Services,Elections,Election Costs,03/07/2013,5403,115,Redacted information - included personal information ,M00192,3,2013
Allerdale Borough Council,15509,Supplies & Services,Elections,Election Costs,03/07/2013,5404,115,Redacted information - included personal information ,M00193,3,2013
Allerdale Borough Council,15509,Supplies & Services,Elections,Election Costs,03/07/2013,5405,93.6,Redacted information - included personal information ,M00194,3,2013
Allerdale Borough Council,15509,Supplies & Services,Elections,Election Costs,03/07/2013,5406,123,Redacted information - included personal information ,M00195,3,2013
Allerdale Borough Council,15509,Supplies & Services,Elections,Election Costs,03/07/2013,5407,115.8,Redacted information - included personal information ,M00196,3,2013
Allerdale Borough Council,75103,Holding and Control Accounts,Payroll Suspense Account,PAYROLL June 13 Travel & Subsistence  ,03/07/2013,,"17,536.22",INLAND REVENUE - DIRECT,X00038,3,2013
